[Event "Austrian Championship Boys-U12 2024"]
[Site "Fuerstenfeld"]
[Date "2024.05.30"]
[Round "2.4"]
[White "Keller, Niklas"]
[Black "Winkelmayr, Raphael"]
[Result "1/2-1/2"]
[ECO "D35"]
[WhiteElo "1710"]
[BlackElo "1529"]
[Annotator "NA RC"]
[PlyCount "78"]
[EventDate "2024.05.28"]
[EventType "swiss"]
[EventCountry "AUT"]
[SourceTitle "playchess.com"]
[Source "ChessBase"]
[SourceQuality "1"]
[TimeControl "5400+30"]

1. d4 {[%emt 0:00:03]} d5 {[%emt 0:00:01]} 2. c4 {[%emt 0:00:13]} e6 {[%emt 0:00:13]} 3. cxd5 {[%emt 0:00:11]} exd5 {[%emt 0:00:08]} 4. Nc3 {[%emt 0:00:10]} Be7 {[%emt 0:03:36]} 5. Bf4 {[%emt 0:00:31]} Nf6 {[%emt 0:01:07]} 6. Qb3 {[%emt 0:00:58]} c6 {[%emt 0:02:26]} 7. e3 {[%emt 0:03:02]} Qb6 {[%emt 0:00:45]} 8. Qxb6 {[%emt 0:00:47]} axb6 {[%emt 0:00:09]} 9. Nf3 {[%emt 0:00:36]} Bf5 {[%emt 0:00:59]} 10. Nh4 {[%emt 0:01:01]} Bg4 {[%emt 0:01:43]} 11. h3 {[%emt 0:00:46]} Be6 {[%emt 0:01:17]} 12. Nf3 {[%emt 0:00:21]} Nh5 {[%emt 0:00:26]} 13. Bh2 {[%emt 0:00:12]} Nd7 {[%emt 0:03:03]} 14. Bd3 {[%emt 0:00:43]} Nhf6 {[%emt 0:01:18]} 15. O-O {[%emt 0:00:47]} O-O {[%emt 0:00:06]} 16. Ne5 {[%emt 0:03:15]} Bd6 {[%emt 0:02:16]} 17. f4 {[%emt 0:00:52]} c5 {[%emt 0:06:07]} 18. Nxd7 {[%emt 0:01:04]} Bxd7 {[%emt 0:01:36]} 19. f5 {[%emt 0:00:25]} Bxh2+ {[%emt 0:00:38]} 20. Kxh2 {[%emt 0:00:02]} Rfe8 {[%emt 0:02:49]} 21. Rae1 {[%emt 0:00:26]} h6 {[%emt 0:02:37]} 22. a3 {[%emt 0:00:06]} Re7 {[%emt 0:03:27]} 23. e4 {[%emt 0:02:10]} cxd4 {[%emt 0:00:52]} 24. Nxd5 {[%emt 0:00:29]} Nxd5 {[%emt 0:00:53]} 25. exd5 {[%emt 0:00:02]} Rxe1 {[%emt 0:01:20]} 26. Rxe1 {[%emt 0:00:01]} Re8 {[%emt 0:00:13]} 27. Rxe8+ {[%emt 0:00:34]} Bxe8 {[%emt 0:00:24]} 28. g4 {[%emt 0:00:15]} Kf8 {[%emt 0:01:20]} 29. Kg3 {[%emt 0:00:08]} Ke7 {[%emt 0:00:18]} 30. Kf4 {[%emt 0:00:09]} Kd6 {[%emt 0:00:28]} 31. Ke4 {[%emt 0:00:08]} f6 {[%emt 0:00:35]} 32. Kxd4 {[%emt 0:00:26]} Bf7 {[%emt 0:00:21]} 33. Be4 {[%emt 0:00:33]} h5 {[%emt 0:00:20]} 34. Bf3 {[%emt 0:03:08]} hxg4 {[%emt 0:00:37]} 35. hxg4 {[%emt 0:00:01]} g6 {[%emt 0:00:31]} 36. Kc4 {[%emt 0:00:37]} gxf5 {[%emt 0:00:29]} 37. gxf5 {[%emt 0:00:09]} Be8 {[%emt 0:00:38]} 38. b3 {[%emt 0:01:54]} Bd7 {[%emt 0:00:39]} 39. Bg4 {[%emt 0:02:16]} Ke5 {[%emt 0:01:35]} 1/2-1/2

[Event "Austrian Championship Boys-U12 2024"]
[Site "Fuerstenfeld"]
[Date "2024.05.30"]
[Round "2.5"]
[White "Slavskyi, Maksym"]
[Black "Safonov, Lev"]
[Result "1-0"]
[ECO "A36"]
[WhiteElo "1660"]
[BlackElo "1473"]
[Annotator "NA COMBH"]
[PlyCount "41"]
[EventDate "2024.05.28"]
[EventType "swiss"]
[EventCountry "AUT"]
[SourceTitle "playchess.com"]
[Source "ChessBase"]
[SourceQuality "1"]
[TimeControl "5400+30"]

1. c4 {[%emt 0:00:19]} e5 {[%emt 0:00:22]} 2. Nc3 {[%emt 0:00:05]} Nf6 {[%emt 0:01:42]} 3. g3 {[%emt 0:01:07]} c5 {[%emt 0:23:45]} 4. Bg2 {[%emt 0:01:29]} Nc6 {[%emt 0:00:57]} 5. e3 {[%emt 0:00:31]} Be7 {[%emt 0:05:06]} 6. Nge2 {[%emt 0:01:29]} O-O {[%emt 0:02:29]} 7. O-O {[%emt 0:01:30]} Rb8 {[%emt 0:04:05]} 8. d3 {[%emt 0:00:41]} a6 {[%emt 0:01:33]} 9. a4 {[%emt 0:01:19]} Qa5 {[%emt 0:06:35]} 10. Bd2 {[%emt 0:01:03]} Qb6 {[%emt 0:04:38]} 11. Rb1 {[%emt 0:00:57]} Nb4 {[%emt 0:01:19]} 12. Nc1 {[%emt 0:01:27]} Rd8 {[%emt 0:02:46]} 13. N3a2 {[%emt 0:02:04]} Nxa2 {[%emt 0:05:38]} 14. Nxa2 {[%emt 0:00:58]} d5 {[%emt 0:00:58]} 15. cxd5 {[%emt 0:01:53]} Nxd5 {[%emt 0:00:28]} 16. Qh5 {[%emt 0:01:10]} Bf6 {[%emt 0:10:18]} 17. Be4 {[%emt 0:02:03]} g6 {[%emt 0:03:28]} 18. Qf3 {[%emt 0:01:03]} Be6 {[%emt 0:05:00]} 19. Nc3 {[%emt 0:01:40]} Nxc3 {[%emt 0:00:16]} 20. bxc3 {[%emt 0:00:22]} Bg4 {[%emt 0:03:43]} 21. Qxg4 {[%emt 0:00:38]} 1-0

[Event "Austrian Championship Boys-U12 2024"]
[Site "Fuerstenfeld"]
[Date "2024.05.30"]
[Round "2.6"]
[White "Schernthaner, Tim"]
[Black "Atlas, Daniel"]
[Result "1-0"]
[ECO "C63"]
[WhiteElo "1538"]
[BlackElo "1629"]
[Annotator "NA RC"]
[PlyCount "91"]
[EventDate "2024.05.28"]
[EventType "swiss"]
[EventCountry "AUT"]
[SourceTitle "playchess.com"]
[Source "ChessBase"]
[SourceQuality "1"]
[TimeControl "5400+30"]

1. e4 {[%emt 0:00:03]} e5 {[%emt 0:00:02]} 2. Nf3 {[%emt 0:00:06]} Nc6 {[%emt 0:00:07]} 3. Bb5 {[%emt 0:00:03]} f5 {[%emt 0:00:29]} 4. d3 {[%emt 0:00:07]} fxe4 {[%emt 0:00:43]} 5. dxe4 {[%emt 0:00:06]} Nf6 {[%emt 0:00:46]} 6. O-O {[%emt 0:00:23]} d6 {[%emt 0:00:52]} 7. Bg5 {[%emt 0:00:18]} Be7 {[%emt 0:00:52]} 8. Nc3 {[%emt 0:00:25]} O-O {[%emt 1:30:39]} 9. Bxf6 {[%emt 1:33:29]} Bxf6 {[%emt 0:00:00]} 10. Nd5 {[%emt 0:00:00]} Bg4 {[%emt 0:00:00]} 11. Qd3 {[%emt 0:00:00]} Kh8 {[%emt 0:00:00]} 12. Nd2 {[%emt 0:00:00]} Nd4 {[%emt 0:00:00]} 13. f3 {[%emt 0:00:00]} Bg5 {[%emt 0:00:00]} 14. fxg4 {[%emt 0:00:00]} Bxd2 {[%emt 0:00:00]} 15. Rxf8+ {[%emt 0:00:00]} Qxf8 {[%emt 0:00:00]} 16. Nxc7 {[%emt 0:00:00]} Rc8 {[%emt 0:00:00]} 17. Qxd2 {[%emt 0:00:00]} Rxc7 {[%emt 0:00:00]} 18. Bd3 {[%emt 0:00:00]} Qc8 {[%emt 0:05:00]} 19. Rf1 {[%emt 0:00:00]} h6 {[%emt 0:00:00]} 20. g5 {[%emt 0:00:00]} h5 {[%emt 0:00:00]} 21. g6 {[%emt 0:00:00]} Kg8 {[%emt 0:00:00]} 22. Qg5 {[%emt 0:00:00]} Ne6 {[%emt 0:00:00]} 23. Qxh5 {[%emt 0:00:00]} Nf4 {[%emt 0:00:00]} 24. Qh7+ {[%emt 0:00:00]} Kf8 {[%emt 0:00:00]} 25. g3 {[%emt 0:00:00]} Qg4 {[%emt 0:00:00]} 26. Qh8+ {[%emt 0:00:00]} Ke7 {[%emt 0:00:00]} 27. Qxg7+ {[%emt 0:00:00]} Kd8 {[%emt 0:00:00]} 28. Qf8+ {[%emt 0:00:00]} Kd7 {[%emt 0:00:00]} 29. Bb5+ {[%emt 0:00:00]} Rc6 {[%emt 0:00:00]} 30. Qf5+ {[%emt 0:00:00]} Qxf5 {[%emt 0:00:00]} 31. Bxc6+ {[%emt 0:00:00]} bxc6 {[%emt 0:00:00]} 32. exf5 {[%emt 0:00:00]} Nh5 {[%emt 0:00:00]} 33. f6 {[%emt 0:00:00]} Ke8 {[%emt 0:00:00]} 34. g4 {[%emt 0:00:00]} Nf4 {[%emt 0:00:00]} 35. g7 {[%emt 0:00:00]} Kf7 {[%emt 0:00:00]} 36. h4 {[%emt 0:00:00]} Ne6 {[%emt 0:00:00]} 37. h5 {[%emt 0:00:00]} Ng5 {[%emt 0:00:00]} 38. h6 {[%emt 0:00:00]} e4 {[%emt 0:00:00]} 39. Rf5 {[%emt 0:00:00]} Nh7 {[%emt 0:00:00]} 40. g5 {[%emt 0:00:00]} Nxg5 {[%emt 0:00:00]} 41. Rxg5 {[%emt 0:00:00]} e3 {[%emt 0:00:00]} 42. g8=Q+ {[%emt 0:00:00]} Kxf6 {[%emt 0:00:00]} 43. Qg6+ {[%emt 0:00:00]} Ke7 {[%emt 0:12:30]} 44. Qe4+ {[%emt 0:00:00]} Kf7 {[%emt 0:00:00]} 45. Qf5+ {[%emt 0:00:00]} Ke7 {[%emt 0:00:00]} 46. Rg7+ {[%emt 0:00:00]} 1-0

[Event "Austrian Championship Boys-U12 2024"]
[Site "Fuerstenfeld"]
[Date "2024.05.31"]
[Round "3.1"]
[White "Slavskyi, Maksym"]
[Black "Pleimer, Noah"]
[Result "0-1"]
[ECO "D37"]
[WhiteElo "1660"]
[BlackElo "1836"]
[Annotator "NA RC"]
[PlyCount "62"]
[EventDate "2024.05.28"]
[EventType "swiss"]
[EventCountry "AUT"]
[SourceTitle "playchess.com"]
[Source "ChessBase"]
[SourceQuality "1"]
[TimeControl "5400+30"]

1. d4 {[%emt 0:01:52]} d5 {[%emt 0:00:05]} 2. c4 {[%emt 0:00:04]} e6 {[%emt 0:00:08]} 3. Nc3 {[%emt 0:01:04]} Nf6 {[%emt 0:00:12]} 4. e3 {[%emt 0:00:59]} Be7 {[%emt 0:01:38]} 5. Nf3 {[%emt 0:01:01]} O-O {[%emt 0:01:22]} 6. Bd3 {[%emt 0:01:00]} Nbd7 {[%emt 0:01:57]} 7. a4 {[%emt 0:01:37]} Re8 {[%emt 0:02:11]} 8. O-O {[%emt 0:01:23]} c6 {[%emt 0:04:45]} 9. b3 {[%emt 0:04:12]} Bd6 {[%emt 0:01:44]} 10. Ba3 {[%emt 0:02:18]} Bxa3 {[%emt 0:01:35]} 11. Rxa3 {[%emt 0:02:00]} Qe7 {[%emt 0:01:19]} 12. Ra2 {[%emt 0:01:30]} h6 {[%emt 0:08:23]} 13. Qb1 {[%emt 0:07:47]} e5 {[%emt 0:05:02]} 14. e4 {[%emt 0:06:39]} exd4 {[%emt 0:01:22]} 15. Nxd4 {[%emt 0:01:34]} Qe5 {[%emt 0:01:01]} 16. Nde2 {[%emt 0:11:55]} dxe4 {[%emt 0:01:03]} 17. Bc2 {[%emt 0:01:35]} Nf8 {[%emt 0:04:16]} 18. Qb2 {[%emt 0:01:07]} e3 {[%emt 0:10:34]} 19. f4 {[%emt 0:02:09]} Qc7 {[%emt 0:03:55]} 20. Rf3 {[%emt 0:02:05]} Bg4 {[%emt 0:03:32]} 21. Rg3 {[%emt 0:02:39]} Rad8 {[%emt 0:01:55]} 22. h3 {[%emt 0:00:37]} Bxe2 {[%emt 0:01:03]} 23. Nxe2 {[%emt 0:01:38]} Kh8 {[%emt 0:02:43]} 24. Bf5 {[%emt 0:03:08]} Rd2 {[%emt 0:01:11]} 25. Qa1 {[%emt 0:00:59]} Qd6 {[%emt 0:00:51]} 26. Bb1 {[%emt 0:00:48]} Rxe2 {[%emt 0:01:15]} 27. Bc2 {[%emt 0:01:21]} Rd2 {[%emt 0:00:53]} 28. c5 {[%emt 0:00:30]} Qxc5 {[%emt 0:00:52]} 29. b4 {[%emt 0:00:14]} Qd4 {[%emt 0:00:30]} 30. Qe1 {[%emt 0:00:26]} e2+ {[%emt 0:00:26]} 31. Kh2 {[%emt 0:00:11]} Rd1 {[%emt 0:00:27]} 0-1

[Event "Austrian Championship Boys-U12 2024"]
[Site "Fuerstenfeld"]
[Date "2024.05.31"]
[Round "3.2"]
[White "Chen, Chicheng Leon"]
[Black "Aboulenein-Djamshidian, Aryan"]
[Result "1-0"]
[ECO "C18"]
[WhiteElo "1827"]
[BlackElo "1625"]
[Annotator "NA RC"]
[PlyCount "85"]
[EventDate "2024.05.28"]
[EventType "swiss"]
[EventCountry "AUT"]
[SourceTitle "playchess.com"]
[Source "ChessBase"]
[SourceQuality "1"]
[TimeControl "5400+30"]

1. e4 {[%emt 0:00:01]} e6 {[%emt 0:00:04]} 2. Nc3 {[%emt 0:00:06]} d5 {[%emt 0:00:07]} 3. d4 {[%emt 0:00:12]} Bb4 {[%emt 0:00:04]} 4. e5 {[%emt 0:00:08]} c5 {[%emt 0:00:17]} 5. a3 {[%emt 0:00:03]} Bxc3+ {[%emt 0:00:05]} 6. bxc3 {[%emt 0:00:08]} Ne7 {[%emt 0:00:06]} 7. h4 {[%emt 0:00:21]} c4 {[%emt 0:03:20]} 8. h5 {[%emt 0:00:14]} h6 {[%emt 0:00:27]} 9. Qg4 {[%emt 0:01:26]} Nf5 {[%emt 0:00:07]} 10. Rh3 {[%emt 0:06:36]} Nc6 {[%emt 0:01:18]} 11. Rf3 {[%emt 0:05:58]} Qh4 {[%emt 0:03:39]} 12. Qxh4 {[%emt 0:00:59]} Nxh4 {[%emt 0:00:25]} 13. Rf4 {[%emt 0:00:13]} Nf5 {[%emt 0:05:02]} 14. g4 {[%emt 0:00:27]} Nh4 {[%emt 0:04:43]} 15. Nf3 {[%emt 0:01:34]} g5 {[%emt 0:01:47]} 16. Rf6 {[%emt 0:01:38]} Nxf3+ {[%emt 0:00:47]} 17. Rxf3 {[%emt 0:00:07]} b5 {[%emt 0:04:33]} 18. Rh3 {[%emt 0:01:00]} O-O {[%emt 0:04:41]} 19. f4 {[%emt 0:00:50]} gxf4 {[%emt 0:00:04]} 20. Bxf4 {[%emt 0:00:08]} Kh7 {[%emt 0:00:03]} 21. Be2 {[%emt 0:00:36]} a5 {[%emt 0:01:37]} 22. Kd2 {[%emt 0:01:20]} Bd7 {[%emt 0:04:02]} 23. Rf3 {[%emt 0:03:31]} b4 {[%emt 0:13:25]} 24. Be3 {[%emt 0:04:51]} bxc3+ {[%emt 0:10:08]} 25. Kxc3 {[%emt 0:00:18]} Kg7 {[%emt 0:00:05]} 26. Rf6 {[%emt 0:00:35]} Rh8 {[%emt 0:00:10]} 27. Raf1 {[%emt 0:00:08]} Be8 {[%emt 0:00:40]} 28. Rg1 {[%emt 0:02:48]} Nb8 {[%emt 0:03:54]} 29. g5 {[%emt 0:04:52]} Nd7 {[%emt 0:00:10]} 30. Rxh6 {[%emt 0:03:52]} Nb6 {[%emt 0:01:30]} 31. g6 {[%emt 0:05:22]} Na4+ {[%emt 0:00:15]} 32. Kd2 {[%emt 0:00:05]} c3+ {[%emt 0:00:05]} 33. Ke1 {[%emt 0:00:19]} fxg6 {[%emt 0:00:59]} 34. Rxh8 {[%emt 0:00:34]} Kxh8 {[%emt 0:00:21]} 35. Bg5 {[%emt 0:03:13]} Rb8 {[%emt 0:04:39]} 36. Bf6+ {[%emt 0:00:34]} Kg8 {[%emt 0:01:52]} 37. Kf2 {[%emt 0:00:29]} Rb2 {[%emt 0:03:45]} 38. Bd3 {[%emt 0:02:48]} Ra2 {[%emt 0:01:09]} 39. hxg6 {[%emt 0:00:12]} Nb2 {[%emt 0:00:06]} 40. Be2 {[%emt 0:06:09]} Nc4 {[%emt 0:08:02]} 41. g7 {[%emt 0:00:26]} Bg6 {[%emt 0:01:23]} 42. Rxg6 {[%emt 0:00:12]} Nd6 {[%emt 0:00:42]} 43. exd6 {[%emt 0:00:14]} 1-0

[Event "Austrian Championship Boys-U12 2024"]
[Site "Fuerstenfeld"]
[Date "2024.05.31"]
[Round "3.3"]
[White "Radnaev, Leo"]
[Black "Schernthaner, Tim"]
[Result "1-0"]
[ECO "B43"]
[WhiteElo "1879"]
[BlackElo "1538"]
[Annotator "NA RC"]
[PlyCount "47"]
[EventDate "2024.05.28"]
[EventType "swiss"]
[EventCountry "AUT"]
[SourceTitle "playchess.com"]
[Source "ChessBase"]
[SourceQuality "1"]
[TimeControl "5400+30"]

1. e4 {[%emt 0:00:01]} c5 {[%emt 0:00:06]} 2. Nf3 {[%emt 0:00:04]} e6 {[%emt 0:00:10]} 3. d4 {[%emt 0:00:05]} cxd4 {[%emt 0:00:13]} 4. Nxd4 {[%emt 0:00:10]} a6 {[%emt 0:00:11]} 5. Nc3 {[%emt 0:00:04]} Qc7 {[%emt 0:00:07]} 6. a3 {[%emt 0:00:11]} Nf6 {[%emt 0:00:06]} 7. f4 {[%emt 0:00:42]} d6 {[%emt 0:00:32]} 8. Be3 {[%emt 0:00:06]} Be7 {[%emt 0:00:06]} 9. Qf3 {[%emt 0:00:06]} Bd7 {[%emt 0:00:29]} 10. O-O-O {[%emt 0:01:13]} Nc6 {[%emt 0:01:25]} 11. Nxc6 {[%emt 0:18:40]} Bxc6 {[%emt 0:00:37]} 12. g4 {[%emt 0:03:25]} b5 {[%emt 0:01:06]} 13. g5 {[%emt 0:00:38]} Nd7 {[%emt 0:00:30]} 14. f5 {[%emt 0:11:30]} Ne5 {[%emt 0:01:21]} 15. Qf4 {[%emt 0:01:09]} exf5 {[%emt 0:01:42]} 16. Qxf5 $11 {[%emt 0:01:15]} Bd7 {[%emt 0:01:48]} 17. Qf4 {[%emt 0:02:21]} f6 {[%emt 0:03:05]} 18. Nd5 {[%emt 0:00:42]} Qc6 {[%emt 0:02:38]} 19. gxf6 {[%emt 0:01:03]} gxf6 {[%emt 0:02:10]} 20. Nxf6+ {[%emt 0:07:25]} Bxf6 {[%emt 0:00:39]} 21. Qxf6 {[%emt 0:00:30]} Rf8 {[%emt 0:00:15]} 22. Qxd6 {[%emt 0:02:01]} Qxe4 {[%emt 1:22:14]} 23. Bg5 {[%emt 0:03:13]} Nf7 {[%emt 0:00:00]} 24. Qxd7# {[%emt 0:00:21]} 1-0

[Event "Austrian Championship Boys-U12 2024"]
[Site "Fuerstenfeld"]
[Date "2024.05.31"]
[Round "3.5"]
[White "Winkelmayr, Raphael"]
[Black "Perfler, Daniel"]
[Result "1/2-1/2"]
[ECO "D30"]
[WhiteElo "1529"]
[BlackElo "1623"]
[Annotator "NA RC"]
[PlyCount "27"]
[EventDate "2024.05.28"]
[EventType "swiss"]
[EventCountry "AUT"]
[SourceTitle "playchess.com"]
[Source "ChessBase"]
[SourceQuality "1"]
[TimeControl "5400+30"]

1. Nf3 {[%emt 0:00:01]} d5 {[%emt 0:00:09]} 2. d4 {[%emt 0:00:11]} Nf6 {[%emt 0:00:07]} 3. c4 {[%emt 0:00:05]} e6 {[%emt 0:00:06]} 4. Bg5 {[%emt 0:00:10]} dxc4 {[%emt 0:00:40]} 5. e3 {[%emt 0:00:09]} b5 {[%emt 0:00:34]} 6. a4 {[%emt 0:00:13]} c6 {[%emt 0:00:38]} 7. b3 {[%emt 0:01:13]} Bb4+ {[%emt 0:02:19]} 8. Ke2 {[%emt 0:09:56]} Ba6 {[%emt 0:04:37]} 9. Ne5 {[%emt 0:03:44]} cxb3 {[%emt 0:03:31]} 10. axb5 {[%emt 0:02:22]} Bxb5+ {[%emt 0:03:27]} 11. Nd3 {[%emt 0:00:25]} Qd5 {[%emt 0:09:40]} 12. Bxf6 {[%emt 0:01:36]} b2 {[%emt 0:04:35]} 13. Ra4 {[%emt 0:10:55]} Bxa4 {[%emt 0:12:43]} 14. Qxa4 {[%emt 0:00:15]} 1/2-1/2

[Event "Austrian Championship Boys-U12 2024"]
[Site "Fuerstenfeld"]
[Date "2024.05.31"]
[Round "4.1"]
[White "Pleimer, Noah"]
[Black "Chen, Chicheng Leon"]
[Result "1/2-1/2"]
[ECO "B30"]
[WhiteElo "1836"]
[BlackElo "1827"]
[Annotator "NA RC"]
[PlyCount "58"]
[EventDate "2024.05.28"]
[EventType "swiss"]
[EventCountry "AUT"]
[SourceTitle "playchess.com"]
[Source "ChessBase"]
[SourceQuality "1"]
[TimeControl "5400+30"]

1. e4 {[%emt 0:00:01]} c5 {[%emt 0:00:04]} 2. Nf3 {[%emt 0:00:05]} e6 {[%emt 0:00:17]} 3. g3 {[%emt 0:00:11]} Nc6 {[%emt 0:01:34]} 4. Bg2 {[%emt 0:00:26]} d6 {[%emt 0:00:37]} 5. O-O {[%emt 0:01:05]} Nf6 {[%emt 0:00:26]} 6. d3 {[%emt 0:01:16]} Be7 {[%emt 0:00:22]} 7. Qe2 {[%emt 0:01:29]} Rb8 {[%emt 0:00:48]} 8. Nbd2 {[%emt 0:01:07]} Qc7 {[%emt 0:01:09]} 9. Re1 {[%emt 0:01:18]} b5 {[%emt 0:02:09]} 10. Nf1 {[%emt 0:01:55]} b4 {[%emt 0:01:25]} 11. h4 {[%emt 0:05:39]} a5 {[%emt 0:00:43]} 12. Bf4 {[%emt 0:02:29]} e5 {[%emt 0:03:51]} 13. Bg5 {[%emt 0:00:19]} Nd4 {[%emt 0:01:16]} 14. Qd2 {[%emt 0:01:50]} Bg4 {[%emt 0:01:43]} 15. N3h2 {[%emt 0:01:47]} Be6 {[%emt 0:00:47]} 16. Bxf6 {[%emt 0:01:06]} Bxf6 {[%emt 0:01:13]} 17. Ne3 {[%emt 0:00:53]} h5 {[%emt 0:05:50]} 18. Nhf1 {[%emt 0:04:21]} g5 {[%emt 0:02:42]} 19. Nd5 {[%emt 0:01:48]} Bxd5 {[%emt 0:01:14]} 20. hxg5 {[%emt 0:00:11]} Bxg5 {[%emt 0:01:53]} 21. Qxg5 {[%emt 0:00:13]} Be6 {[%emt 0:00:09]} 22. Ne3 {[%emt 0:01:29]} Qe7 {[%emt 0:02:49]} 23. Qxe7+ {[%emt 0:00:51]} Kxe7 {[%emt 0:00:34]} 24. f4 {[%emt 1:10:41]} f6 {[%emt 0:05:12]} 25. Kf2 {[%emt 0:00:00]} h4 {[%emt 0:06:07]} 26. f5 {[%emt 0:00:00]} hxg3+ {[%emt 0:00:50]} 27. Kxg3 {[%emt 0:00:00]} Rbg8+ {[%emt 0:00:46]} 28. Kf2 {[%emt 0:00:00]} Bf7 {[%emt 0:00:32]} 29. Rh1 {[%emt 0:00:00]} a4 {[%emt 0:01:49]} 1/2-1/2

[Event "Austrian Championship Boys-U12 2024"]
[Site "Fuerstenfeld"]
[Date "2024.05.31"]
[Round "4.2"]
[White "Rella, Mario"]
[Black "Radnaev, Leo"]
[Result "0-1"]
[ECO "E92"]
[WhiteElo "1582"]
[BlackElo "1879"]
[Annotator "NA RC"]
[PlyCount "132"]
[EventDate "2024.05.28"]
[EventType "swiss"]
[EventCountry "AUT"]
[SourceTitle "playchess.com"]
[Source "ChessBase"]
[SourceQuality "1"]
[TimeControl "5400+30"]

1. d4 {[%emt 0:00:06]} Nf6 {[%emt 0:00:04]} 2. Nf3 {[%emt 0:00:13]} g6 {[%emt 0:00:03]} 3. c4 {[%emt 0:00:11]} Bg7 {[%emt 0:00:01]} 4. Nc3 {[%emt 1:32:00]} O-O {[%emt 0:00:05]} 5. e4 {[%emt 0:00:00]} d6 {[%emt 0:00:03]} 6. Be2 {[%emt 0:00:00]} e5 {[%emt 0:00:04]} 7. dxe5 {[%emt 0:00:00]} dxe5 {[%emt 0:00:11]} 8. Qxd8 {[%emt 0:00:00]} Rxd8 {[%emt 0:00:08]} 9. Bg5 {[%emt 0:00:00]} c6 {[%emt 0:01:12]} 10. Nxe5 {[%emt 0:00:00]} Re8 {[%emt 0:00:52]} 11. O-O-O {[%emt 0:00:00]} Nxe4 {[%emt 0:08:03]} 12. Nxe4 {[%emt 0:04:00]} Bxe5 {[%emt 0:00:21]} 13. Bf6 {[%emt 0:00:00]} Bf4+ {[%emt 0:02:27]} 14. Kb1 {[%emt 0:00:00]} Bf5 {[%emt 0:00:27]} 15. f3 {[%emt 0:00:00]} Nd7 {[%emt 0:01:54]} 16. Bc3 {[%emt 0:00:00]} Nc5 {[%emt 0:02:05]} 17. Ka1 {[%emt 0:00:00]} Nxe4 {[%emt 0:03:46]} 18. fxe4 {[%emt 0:00:00]} Rxe4 {[%emt 0:00:58]} 19. Bd3 {[%emt 0:00:00]} Re3 {[%emt 0:27:06]} 20. Bxf5 {[%emt 0:00:00]} gxf5 {[%emt 0:00:21]} 21. Rhf1 {[%emt 0:00:00]} Be5 {[%emt 0:05:00]} 22. Bxe5 {[%emt 0:00:00]} Rxe5 {[%emt 0:00:11]} 23. b3 {[%emt 0:00:00]} Rae8 {[%emt 0:02:52]} 24. Rd2 {[%emt 0:00:00]} Kg7 {[%emt 0:00:59]} 25. Rg1 {[%emt 0:00:00]} Kg6 {[%emt 0:02:04]} 26. Rf2 {[%emt 0:00:00]} Kg5 {[%emt 0:02:17]} 27. Rd1 {[%emt 0:00:00]} Re1 {[%emt 0:01:43]} 28. Rxe1 {[%emt 0:00:00]} Rxe1+ {[%emt 0:00:09]} 29. Kb2 {[%emt 0:00:00]} f4 {[%emt 0:08:41]} 30. Kc2 {[%emt 0:00:00]} h5 {[%emt 0:02:56]} 31. Kd2 {[%emt 0:00:00]} Re7 {[%emt 0:01:22]} 32. Kc2 {[%emt 0:00:00]} f5 {[%emt 0:00:25]} 33. Kc3 {[%emt 0:00:00]} c5 {[%emt 0:00:16]} 34. Kd2 {[%emt 0:00:00]} Re4 {[%emt 0:00:19]} 35. Kd3 {[%emt 0:00:00]} Kg4 {[%emt 0:00:57]} 36. Rf3 {[%emt 0:00:00]} h4 {[%emt 0:04:23]} 37. Kd2 {[%emt 0:00:00]} Kg5 {[%emt 0:05:43]} 38. Kd3 {[%emt 0:00:00]} Re1 {[%emt 0:04:45]} 39. h3 {[%emt 0:00:00]} Rd1+ {[%emt 0:00:15]} 40. Kc3 {[%emt 0:00:00]} Rd4 {[%emt 0:00:34]} 41. Kc2 {[%emt 0:00:00]} Kf6 {[%emt 0:00:30]} 42. Kc3 {[%emt 0:00:00]} Ke5 {[%emt 0:00:54]} 43. Kc2 {[%emt 0:00:00]} Ke4 {[%emt 0:00:50]} 44. Rc3 {[%emt 0:00:00]} Rd7 {[%emt 0:01:00]} 45. Rf3 {[%emt 0:00:00]} Rg7 {[%emt 0:00:39]} 46. Rf2 {[%emt 0:00:00]} Ke3 {[%emt 0:00:06]} 47. Rf3+ {[%emt 0:00:00]} Ke4 {[%emt 0:00:30]} 48. Rf2 {[%emt 0:00:00]} Rg3 {[%emt 0:00:30]} 49. Re2+ {[%emt 0:00:00]} Re3 {[%emt 0:01:53]} 50. Kd2 {[%emt 0:00:00]} Rxe2+ {[%emt 0:03:10]} 51. Kxe2 {[%emt 0:00:00]} f3+ {[%emt 0:00:31]} 52. gxf3+ {[%emt 0:00:00]} Kf4 {[%emt 0:00:53]} 53. Kf2 {[%emt 0:00:00]} a6 {[%emt 0:00:13]} 54. a3 {[%emt 0:00:00]} a5 {[%emt 0:00:09]} 55. a4 {[%emt 0:00:00]} b6 {[%emt 0:00:07]} 56. Kg2 {[%emt 0:00:00]} Ke3 {[%emt 0:00:06]} 57. f4 {[%emt 0:00:00]} Kxf4 {[%emt 0:00:22]} 58. Kf2 {[%emt 0:00:00]} Ke4 {[%emt 0:00:07]} 59. Ke2 {[%emt 0:00:00]} f4 {[%emt 0:00:15]} 60. Kf2 {[%emt 0:00:00]} f3 {[%emt 0:00:39]} 61. Ke1 {[%emt 0:00:00]} Ke3 {[%emt 0:00:56]} 62. Kf1 {[%emt 0:00:00]} f2 {[%emt 0:00:20]} 63. Kg2 {[%emt 0:00:00]} Ke2 {[%emt 0:00:10]} 64. Kh2 {[%emt 0:00:00]} f1=Q {[%emt 0:00:26]} 65. b4 {[%emt 0:00:00]} Kf2 {[%emt 0:00:06]} 66. b5 {[%emt 0:00:00]} Qg2# {[%emt 0:00:08]} 0-1

[Event "Austrian Championship Boys-U12 2024"]
[Site "Fuerstenfeld"]
[Date "2024.05.31"]
[Round "4.4"]
[White "Schernthaner, Tim"]
[Black "Slavskyi, Maksym"]
[Result "1-0"]
[ECO "C42"]
[WhiteElo "1538"]
[BlackElo "1660"]
[Annotator "NA RC"]
[PlyCount "47"]
[EventDate "2024.05.28"]
[EventType "swiss"]
[EventCountry "AUT"]
[SourceTitle "playchess.com"]
[Source "ChessBase"]
[SourceQuality "1"]
[TimeControl "5400+30"]

1. e4 {[%emt 0:00:01]} e5 {[%emt 0:06:13]} 2. Nf3 {[%emt 0:00:10]} Nf6 {[%emt 0:00:16]} 3. Nxe5 {[%emt 0:00:07]} d6 {[%emt 0:00:11]} 4. Nf3 {[%emt 0:00:05]} Nxe4 {[%emt 0:00:05]} 5. Nc3 {[%emt 0:00:12]} Nf6 {[%emt 0:00:26]} 6. d4 {[%emt 0:00:19]} Be7 {[%emt 0:00:02]} 7. Bd3 {[%emt 0:00:16]} O-O {[%emt 0:00:10]} 8. h3 {[%emt 0:00:04]} Re8 {[%emt 0:00:22]} 9. O-O {[%emt 0:00:07]} d5 {[%emt 0:01:10]} 10. Re1 {[%emt 0:00:26]} Be6 {[%emt 0:00:16]} 11. Bf4 {[%emt 0:00:56]} Nbd7 {[%emt 0:00:23]} 12. Nb5 {[%emt 0:01:09]} Rf8 {[%emt 0:01:41]} 13. Nxc7 {[%emt 0:00:25]} Rc8 {[%emt 0:00:17]} 14. Nxe6 {[%emt 0:00:19]} fxe6 {[%emt 0:00:02]} 15. Rxe6 {[%emt 0:00:13]} Rf7 {[%emt 0:00:19]} 16. Qe2 {[%emt 0:01:23]} Nf8 {[%emt 0:00:40]} 17. Re3 {[%emt 0:00:56]} Bb4 {[%emt 0:02:35]} 18. c3 {[%emt 0:00:24]} Ba5 {[%emt 0:00:02]} 19. Ng5 {[%emt 0:00:40]} Rd7 {[%emt 0:00:24]} 20. Bf5 {[%emt 0:00:06]} Ng6 {[%emt 0:02:30]} 21. Bxd7 {[%emt 0:00:32]} Nxf4 {[%emt 0:00:04]} 22. Be6+ {[%emt 0:01:00]} Kf8 {[%emt 0:00:30]} 23. Qf3 {[%emt 0:00:14]} Rc6 {[%emt 0:00:40]} 24. Qxf4 {[%emt 0:00:18]} 1-0